[Event "Turkish Second League 2019"]
[Site "Konya"]
[Date "2019.07.22"]
[Round "1"]
[White "Shanava, Konstantine"]
[Black "Deniz, Medeni"]
[Result "1-0"]
[ECO "C42"]
[WhiteElo "2538"]
[BlackElo "1962"]
[Annotator "ChessBase"]
[PlyCount "69"]
[EventDate "2019.07.22"]
[EventType "team-tourn"]
[EventCountry "TUR"]
[SourceTitle "playchess.com"]
[Source "ChessBase"]
[SourceQuality "1"]
[TimeControl "5400+30"]

1. e4 {[%emt 0:00:30]} e5 {[%emt 0:00:30]} 2. Nf3 {[%emt 0:00:30]} Nf6 {[%emt 0:00:00]} 3. Nc3 {[%emt 0:00:00]} Bb4 {[%emt 0:00:00]} 4. Bc4 {[%emt 0:01:00]} d6 {[%emt 0:00:30]} 5. O-O {[%emt 0:01:30]} O-O {[%emt 0:05:30]} 6. Re1 {[%emt 0:04:30]} Bg4 {[%emt 0:02:30]} 7. h3 {[%emt 0:07:30]} Bh5 {[%emt 0:00:30]} 8. a3 {[%emt 0:03:30]} Ba5 {[%emt 0:00:00]} 9. b4 {[%emt 0:07:30]} Bb6 {[%emt 0:00:00]} 10. Na4 {[%emt 0:00:00]} Nxe4 {[%emt 0:06:30]} 11. Nxb6 {[%emt 0:03:00]} axb6 {[%emt 0:00:30]} 12. Rxe4 {[%emt 0:00:30]} d5 {[%emt 0:00:00]} 13. Rxe5 {[%emt 0:00:30]} Bxf3 {[%emt 0:00:00]} 14. Qxf3 {[%emt 0:00:30]} dxc4 {[%emt 0:00:00]} 15. Bb2 {[%emt 0:02:30]} Nc6 {[%emt 0:05:00]} 16. Rd5 {[%emt 0:05:30]} Qe7 {[%emt 0:00:30]} 17. Qg4 {[%emt 0:02:30]} f5 {[%emt 0:03:30]} 18. Qxc4 {[%emt 0:01:30]} Qe6 {[%emt 0:03:30]} 19. Rd7 {[%emt 0:00:30]} Qxc4 {[%emt 0:02:30]} 20. Rxg7+ {[%emt 0:00:00]} Kh8 {[%emt 0:00:30]} 21. Rg4+ {[%emt 0:00:00]} Nd4 {[%emt 0:00:00]} 22. Bxd4+ {[%emt 0:00:30]} Qxd4 {[%emt 0:00:00]} 23. Rxd4 {[%emt 0:00:00]} Rf7 {[%emt 0:01:30]} 24. Rd3 {[%emt 0:10:00]} Kg7 {[%emt 0:00:30]} 25. Re1 {[%emt 0:00:00]} Kf6 {[%emt 0:00:30]} 26. Rf3 {[%emt 0:00:00]} h5 {[%emt 0:00:30]} 27. d4 {[%emt 0:01:30]} Rd8 {[%emt 0:00:30]} 28. Re5 {[%emt 0:00:30]} Kg6 {[%emt 0:00:00]} 29. c3 {[%emt 0:00:30]} c6 {[%emt 0:00:00]} 30. Rg3+ {[%emt 0:02:30]} Kf6 {[%emt 0:01:30]} 31. f4 {[%emt 0:00:30]} b5 {[%emt 0:00:30]} 32. Rg5 {[%emt 0:00:30]} Ra8 {[%emt 0:00:00]} 33. Rxh5 {[%emt 0:02:30]} Rxa3 {[%emt 0:00:00]} 34. Rhxf5+ {[%emt 0:00:30]} Kg7 {[%emt 0:00:30]} 35. Rxf7+ {[%emt 0:00:00]} 1-0

[Event "Turkish Second League 2019"]
[Site "Konya"]
[Date "2019.07.22"]
[Round "1"]
[White "Bashirli, Nail"]
[Black "Hasanzade, Toghrul"]
[Result "1-0"]
[ECO "C07"]
[WhiteElo "2367"]
[BlackElo "2318"]
[Annotator "NA"]
[PlyCount "69"]
[EventDate "2019.07.22"]
[EventType "team-tourn"]
[EventCountry "TUR"]
[SourceTitle "playchess.com"]
[Source "ChessBase"]
[SourceQuality "1"]
[TimeControl "5400+30"]

1. e4 {[%emt 0:00:30]} e6 {[%emt 0:00:30]} 2. d4 {[%emt 0:00:00]} d5 {[%emt 0:00:30]} 3. Nd2 {[%emt 0:00:00]} c5 {[%emt 0:00:30]} 4. Ngf3 {[%emt 0:00:30]} cxd4 {[%emt 0:00:30]} 5. Nxd4 {[%emt 0:00:30]} Nc6 {[%emt 0:00:00]} 6. Bb5 {[%emt 0:00:00]} Bd7 {[%emt 0:01:00]} 7. Nxc6 {[%emt 0:00:00]} bxc6 {[%emt 0:00:30]} 8. Bd3 {[%emt 0:00:00]} Qc7 {[%emt 0:00:00]} 9. Qe2 {[%emt 0:01:00]} Ne7 {[%emt 0:00:00]} 10. O-O {[%emt 0:00:30]} Ng6 {[%emt 0:00:30]} 11. Nf3 {[%emt 0:00:30]} Bd6 {[%emt 0:06:30]} 12. Re1 {[%emt 0:00:00]} Nf4 {[%emt 0:00:30]} 13. Bxf4 {[%emt 0:00:00]} Bxf4 {[%emt 0:00:30]} 14. g3 {[%emt 0:00:30]} Bd6 {[%emt 0:00:30]} 15. exd5 {[%emt 0:00:00]} cxd5 {[%emt 0:00:30]} 16. Rac1 {[%emt 0:00:00]} Qa5 {[%emt 0:17:30]} 17. c4 {[%emt 0:07:30]} O-O {[%emt 0:37:30]} 18. a3 {[%emt 0:08:30]} dxc4 {[%emt 0:07:30]} 19. Rxc4 {[%emt 0:00:30]} Rfd8 {[%emt 0:04:30]} 20. Rd4 {[%emt 0:10:30]} Bc6 {[%emt 0:03:21]} 21. Bxh7+ {[%emt 0:02:30]} Kxh7 {[%emt 0:02:26]} 22. Qc2+ {[%emt 0:04:30]} Qf5 {[%emt 0:01:06]} 23. Qxc6 {[%emt 0:00:30]} Rac8 {[%emt 0:01:01]} 24. Qe4 {[%emt 0:05:30]} Qxe4 {[%emt 0:04:17]} 25. Rexe4 {[%emt 0:00:30]} Bc5 {[%emt 0:04:17]} 26. Rxd8 {[%emt 0:02:30]} Rxd8 {[%emt 0:00:02]} 27. b4 {[%emt 0:00:00]} Bb6 {[%emt 0:02:37]} 28. a4 {[%emt 0:00:00]} Kg8 {[%emt 0:04:45]} 29. Rc4 {[%emt 0:00:30]} f6 {[%emt 0:00:24]} 30. Kg2 {[%emt 0:00:30]} Rd5 {[%emt 0:00:22]} 31. a5 {[%emt 0:00:30]} Bd8 {[%emt 0:00:01]} 32. Nd4 {[%emt 0:00:30]} Kf7 {[%emt 0:01:04]} 33. Nc6 {[%emt 0:00:30]} a6 {[%emt 0:00:31]} 34. Nb8 {[%emt 0:01:30]} Rd6 {[%emt 0:00:42]} 35. Rc6 {[%emt 0:02:30]} 1-0

[Event "Turkish Second League 2019"]
[Site "Konya"]
[Date "2019.07.22"]
[Round "1"]
[White "Karaoglan, Doruk"]
[Black "Eken, Atakan"]
[Result "1-0"]
[ECO "B04"]
[WhiteElo "2278"]
[BlackElo "1763"]
[Annotator "NA"]
[PlyCount "73"]
[EventDate "2019.07.22"]
[EventType "team-tourn"]
[EventCountry "TUR"]
[SourceTitle "playchess.com"]
[Source "ChessBase"]
[SourceQuality "1"]
[TimeControl "5400+30"]

1. e4 {[%emt 0:00:30]} Nf6 {[%emt 0:00:30]} 2. e5 {[%emt 0:00:30]} Nd5 {[%emt 0:00:30]} 3. d4 {[%emt 0:00:00]} d6 {[%emt 0:00:30]} 4. Nf3 {[%emt 0:00:00]} Nb6 {[%emt 0:00:30]} 5. a4 {[%emt 0:00:30]} a5 {[%emt 0:00:30]} 6. Nc3 {[%emt 0:01:30]} g6 {[%emt 0:03:30]} 7. Bb5+ {[%emt 0:05:30]} c6 {[%emt 0:03:30]} 8. Bd3 {[%emt 0:04:30]} Bg7 {[%emt 0:07:30]} 9. O-O {[%emt 0:11:30]} O-O {[%emt 0:01:30]} 10. h3 {[%emt 0:12:30]} Na6 {[%emt 0:18:30]} 11. exd6 {[%emt 0:13:30]} Qxd6 {[%emt 0:09:30]} 12. Ne4 {[%emt 0:02:30]} Qc7 {[%emt 0:03:30]} 13. c3 {[%emt 0:01:30]} Bf5 {[%emt 0:06:30]} 14. Re1 {[%emt 0:16:30]} Nd5 {[%emt 0:03:30]} 15. Nh4 {[%emt 0:03:30]} Bxe4 {[%emt 0:00:30]} 16. Bxe4 {[%emt 0:00:30]} Rad8 {[%emt 0:05:30]} 17. Bg5 {[%emt 0:10:04]} Rfe8 {[%emt 0:03:30]} 18. Qg4 {[%emt 0:07:52]} Nf6 {[%emt 0:08:30]} 19. Bxf6 {[%emt 0:01:53]} Bxf6 {[%emt 0:08:25]} 20. Bd3 {[%emt 0:01:20]} Nb8 {[%emt 0:00:43]} 21. Bc4 {[%emt 0:00:30]} Bxh4 {[%emt 0:07:39]} 22. Qxh4 {[%emt 0:00:04]} Qd6 {[%emt 0:00:00]} 23. Re5 {[%emt 0:01:40]} b6 {[%emt 0:03:08]} 24. Bxf7+ {[%emt 0:01:57]} Kxf7 {[%emt 0:00:23]} 25. Qxh7+ {[%emt 0:00:04]} Kf6 {[%emt 0:00:53]} 26. g4 {[%emt 0:00:16]} Qxe5 {[%emt 0:03:37]} 27. dxe5+ {[%emt 0:00:06]} Kxe5 {[%emt 0:00:06]} 28. Qxg6 {[%emt 0:00:01]} e6 {[%emt 0:00:05]} 29. Qg7+ {[%emt 0:00:29]} Kd6 {[%emt 0:01:19]} 30. Rd1+ {[%emt 0:00:30]} Kc5 {[%emt 0:00:30]} 31. Qe5+ {[%emt 0:00:30]} Rd5 {[%emt 0:00:30]} 32. Rxd5+ {[%emt 0:00:30]} cxd5 {[%emt 0:00:30]} 33. Qc7+ {[%emt 0:00:00]} Nc6 {[%emt 0:00:00]} 34. b4+ {[%emt 0:00:00]} axb4 {[%emt 0:00:00]} 35. cxb4+ {[%emt 0:00:00]} Kxb4 {[%emt 0:01:27]} 36. Qxb6+ {[%emt 0:00:00]} Ka3 {[%emt 0:00:06]} 37. Qxc6 {[%emt 0:00:00]} 1-0

[Event "Turkish Second League 2019"]
[Site "Konya"]
[Date "2019.07.22"]
[Round "1"]
[White "Ozates, Tuna"]
[Black "Oztekin, Mehmet Metin"]
[Result "1-0"]
[ECO "B09"]
[WhiteElo "2218"]
[BlackElo "1866"]
[Annotator "NA"]
[PlyCount "41"]
[EventDate "2019.07.22"]
[EventType "team-tourn"]
[EventCountry "TUR"]
[SourceTitle "playchess.com"]
[Source "ChessBase"]
[SourceQuality "1"]
[TimeControl "5400+30"]

1. e4 {[%emt 0:00:30]} d6 {[%emt 0:00:30]} 2. d4 {[%emt 0:00:00]} Nf6 {[%emt 0:01:30]} 3. Nc3 {[%emt 0:00:00]} g6 {[%emt 0:00:00]} 4. f4 {[%emt 0:00:00]} Bg7 {[%emt 0:01:00]} 5. Nf3 {[%emt 0:00:00]} O-O {[%emt 0:00:30]} 6. Be3 {[%emt 0:00:30]} c6 {[%emt 0:02:30]} 7. Bd3 {[%emt 0:08:30]} Ng4 {[%emt 0:03:30]} 8. Qe2 {[%emt 0:08:30]} b5 {[%emt 0:05:30]} 9. e5 {[%emt 0:00:30]} f5 {[%emt 0:01:30]} 10. O-O {[%emt 0:03:30]} Nxe3 {[%emt 0:09:30]} 11. Qxe3 {[%emt 0:00:00]} d5 {[%emt 0:00:30]} 12. h4 {[%emt 0:02:00]} e6 {[%emt 0:03:30]} 13. h5 {[%emt 0:01:30]} Bh6 {[%emt 0:04:30]} 14. hxg6 {[%emt 0:00:30]} hxg6 {[%emt 0:01:30]} 15. Kf2 {[%emt 0:01:30]} Kf7 {[%emt 0:01:30]} 16. Rh1 {[%emt 0:00:30]} Rh8 {[%emt 0:00:30]} 17. Rh3 {[%emt 0:00:30]} Nd7 {[%emt 0:03:30]} 18. Rah1 {[%emt 0:02:30]} Bg7 {[%emt 0:00:00]} 19. Ng5+ {[%emt 0:00:00]} Ke7 {[%emt 0:01:00]} 20. Rxh8 {[%emt 0:00:00]} Bxh8 {[%emt 0:01:30]} 21. Rh7+ {[%emt 0:00:00]} 1-0

[Event "Turkish Second League 2019"]
[Site "Konya"]
[Date "2019.07.22"]
[Round "1"]
[White "Temizkan, Denizcan"]
[Black "Yilmaz, Ada"]
[Result "1-0"]
[ECO "D11"]
[WhiteElo "2202"]
[BlackElo "1805"]
[Annotator "NA"]
[PlyCount "61"]
[EventDate "2019.07.22"]
[EventType "team-tourn"]
[EventCountry "TUR"]
[SourceTitle "playchess.com"]
[Source "ChessBase"]
[SourceQuality "1"]
[TimeControl "5400+30"]

1. d4 {[%emt 0:00:30]} d5 {[%emt 0:00:30]} 2. c4 {[%emt 0:00:00]} c6 {[%emt 0:00:00]} 3. e3 {[%emt 0:00:00]} Nf6 {[%emt 0:00:00]} 4. Nf3 {[%emt 0:00:30]} a6 {[%emt 0:00:00]} 5. b3 {[%emt 0:00:00]} Bg4 {[%emt 0:01:00]} 6. Be2 {[%emt 0:02:00]} e6 {[%emt 0:01:30]} 7. O-O {[%emt 0:00:30]} Bd6 {[%emt 0:01:30]} 8. Bb2 {[%emt 0:05:30]} O-O {[%emt 0:00:30]} 9. h3 {[%emt 0:01:30]} Bh5 {[%emt 0:01:30]} 10. Nbd2 {[%emt 0:01:30]} Nbd7 {[%emt 0:01:30]} 11. Ne5 {[%emt 0:01:30]} Bxe2 {[%emt 0:00:30]} 12. Qxe2 {[%emt 0:00:30]} Qc7 {[%emt 0:09:30]} 13. f4 {[%emt 0:09:30]} Ne4 {[%emt 0:02:30]} 14. Nxe4 {[%emt 0:17:30]} dxe4 {[%emt 0:00:30]} 15. Qc2 {[%emt 0:00:30]} f5 {[%emt 0:02:30]} 16. c5 {[%emt 0:00:30]} Bxe5 {[%emt 0:12:30]} 17. dxe5 {[%emt 0:01:30]} Rf7 {[%emt 0:29:30]} 18. Rfd1 {[%emt 0:02:30]} Nf8 {[%emt 0:00:30]} 19. Rd6 {[%emt 0:04:30]} Qe7 {[%emt 0:06:30]} 20. g3 {[%emt 0:26:30]} g5 {[%emt 0:05:30]} 21. Kf2 {[%emt 0:00:30]} Rg7 {[%emt 0:00:30]} 22. Rg1 {[%emt 0:00:30]} Qf7 {[%emt 0:03:29]} 23. Qd1 {[%emt 0:04:29]} Re8 {[%emt 0:05:34]} 24. Bc3 {[%emt 0:03:06]} Ng6 {[%emt 0:01:50]} 25. Ba5 {[%emt 0:04:25]} gxf4 {[%emt 0:01:19]} 26. gxf4 {[%emt 0:01:52]} Nh4 {[%emt 0:02:20]} 27. Bd8 {[%emt 0:01:47]} Nf3 {[%emt 0:01:12]} 28. Rxg7+ {[%emt 0:00:51]} Qxg7 {[%emt 0:00:30]} 29. Bf6 {[%emt 0:00:21]} Qh6 {[%emt 0:06:41]} 30. Rd7 {[%emt 0:00:56]} Nxe5 {[%emt 0:00:35]} 31. fxe5 {[%emt 0:00:22]} 1-0

[Event "Turkish Second League 2019"]
[Site "Konya"]
[Date "2019.07.22"]
[Round "1"]
[White "Demirbag, Alihan"]
[Black "Karatas, Kutay"]
[Result "1-0"]
[ECO "B23"]
[WhiteElo "2087"]
[BlackElo "1846"]
[Annotator "NA"]
[PlyCount "69"]
[EventDate "2019.07.22"]
[EventType "team-tourn"]
[EventCountry "TUR"]
[SourceTitle "playchess.com"]
[Source "ChessBase"]
[SourceQuality "1"]
[TimeControl "5400+30"]

1. e4 {[%emt 0:00:30]} c5 {[%emt 0:00:30]} 2. Nc3 {[%emt 0:00:30]} a6 {[%emt 0:00:00]} 3. g3 {[%emt 0:00:30]} b5 {[%emt 0:00:00]} 4. Bg2 {[%emt 0:00:00]} Bb7 {[%emt 0:00:30]} 5. d3 {[%emt 0:00:00]} e6 {[%emt 0:00:00]} 6. Nh3 {[%emt 0:01:30]} Nf6 {[%emt 0:00:00]} 7. O-O {[%emt 0:00:30]} Be7 {[%emt 0:00:30]} 8. f4 {[%emt 0:01:30]} d5 {[%emt 0:02:30]} 9. e5 {[%emt 0:06:30]} Nfd7 {[%emt 0:00:00]} 10. f5 {[%emt 0:06:30]} Qb6 {[%emt 0:32:00]} 11. fxe6 {[%emt 0:08:30]} fxe6 {[%emt 0:00:30]} 12. Nf4 {[%emt 0:06:30]} g6 {[%emt 0:05:30]} 13. Qe2 {[%emt 0:14:30]} b4 {[%emt 0:10:30]} 14. Na4 {[%emt 0:03:30]} Qc6 {[%emt 0:00:30]} 15. b3 {[%emt 0:00:00]} Nf8 {[%emt 0:13:30]} 16. Nh3 {[%emt 0:01:00]} Nbd7 {[%emt 0:03:30]} 17. Bg5 {[%emt 0:02:30]} h6 {[%emt 0:03:30]} 18. Bxe7 {[%emt 0:01:30]} Kxe7 {[%emt 0:00:30]} 19. Qf3 {[%emt 0:10:30]} Rh7 {[%emt 0:02:30]} 20. Rae1 {[%emt 0:00:00]} Kd8 {[%emt 0:03:30]} 21. d4 {[%emt 0:06:00]} cxd4 {[%emt 0:03:52]} 22. Qd3 {[%emt 0:02:30]} Rc8 {[%emt 0:02:16]} 23. Qxd4 {[%emt 0:00:30]} Kc7 {[%emt 0:00:21]} 24. Qxb4 {[%emt 0:01:30]} Kb8 {[%emt 0:00:43]} 25. c4 {[%emt 0:00:00]} g5 {[%emt 0:01:56]} 26. Nf2 {[%emt 0:02:00]} h5 {[%emt 0:02:41]} 27. Nd3 {[%emt 0:01:30]} h4 {[%emt 0:00:55]} 28. cxd5 {[%emt 0:00:00]} exd5 {[%emt 0:00:00]} 29. Rc1 {[%emt 0:00:00]} Qh6 {[%emt 0:05:09]} 30. Bxd5 {[%emt 0:00:30]} Nc5 {[%emt 0:01:16]} 31. Ndxc5 {[%emt 0:01:30]} hxg3 {[%emt 0:00:10]} 32. Nd7+ {[%emt 0:00:30]} Rxd7 {[%emt 0:01:31]} 33. Rxc8+ {[%emt 0:00:30]} Kxc8 {[%emt 0:00:30]} 34. Rxf8+ {[%emt 0:00:00]} Rd8 {[%emt 0:04:02]} 35. Qxb7# {[%emt 0:00:00]} 1-0

[Event "Turkish Second League 2019"]
[Site "Konya"]
[Date "2019.07.22"]
[Round "1"]
[White "Ozturk, Efe Hakan"]
[Black "Tahaoglu, Ugur Barkin"]
[Result "1-0"]
[ECO "A07"]
[WhiteElo "2017"]
[BlackElo "1939"]
[Annotator "NA"]
[PlyCount "54"]
[EventDate "2019.07.22"]
[EventType "team-tourn"]
[EventCountry "TUR"]
[SourceTitle "playchess.com"]
[Source "ChessBase"]
[SourceQuality "1"]
[TimeControl "5400+30"]

1. Nf3 {[%emt 0:00:30]} d5 {[%emt 0:00:30]} 2. g3 {[%emt 0:00:30]} Bg4 {[%emt 0:00:00]} 3. Bg2 {[%emt 0:02:30]} c6 {[%emt 0:00:00]} 4. b3 {[%emt 0:02:30]} Nd7 {[%emt 0:02:30]} 5. Bb2 {[%emt 0:00:30]} Ngf6 {[%emt 0:00:30]} 6. O-O {[%emt 0:01:30]} e6 {[%emt 0:00:30]} 7. d3 {[%emt 0:03:30]} Be7 {[%emt 0:00:30]} 8. Nbd2 {[%emt 0:00:30]} O-O {[%emt 0:00:30]} 9. e4 {[%emt 0:03:30]} Bh5 {[%emt 0:01:30]} 10. e5 {[%emt 0:12:30]} Ne8 {[%emt 0:00:00]} 11. Qe1 {[%emt 0:02:30]} b5 {[%emt 0:06:00]} 12. Nd4 {[%emt 0:09:30]} Qb6 {[%emt 0:02:30]} 13. h3 {[%emt 0:05:30]} c5 {[%emt 0:04:30]} 14. Ne2 {[%emt 0:01:30]} Bxe2 {[%emt 0:14:30]} 15. Qxe2 {[%emt 0:00:00]} b4 {[%emt 0:02:30]} 16. c4 {[%emt 0:08:00]} bxc3 {[%emt 0:00:30]} 17. Bxc3 {[%emt 0:00:30]} Nc7 {[%emt 0:01:30]} 18. Kh1 {[%emt 0:04:30]} Nb5 {[%emt 0:30:30]} 19. Bb2 {[%emt 0:00:00]} Nd4 {[%emt 0:00:30]} 20. Bxd4 {[%emt 0:00:00]} cxd4 {[%emt 0:24:45]} 21. f4 {[%emt 0:26:18]} Rfc8 {[%emt 0:00:30]} 22. Rac1 {[%emt 0:00:30]} Rc3 {[%emt 0:00:30]} 23. Nb1 {[%emt 0:02:13]} Rc7 {[%emt 0:00:30]} 24. Rxc7 {[%emt 0:00:30]} Qxc7 {[%emt 0:00:30]} 25. Qb2 {[%emt 0:00:30]} Rc8 {[%emt 0:00:30]} 26. Qxd4 {[%emt 0:00:30]} Qa5 {[%emt 0:00:30]} 27. Qf2 {[%emt 0:00:30]} Rc6 {[%emt 0:01:23]} 1-0

[Event "Turkish Second League 2019"]
[Site "Konya"]
[Date "2019.07.22"]
[Round "1"]
[White "Makaraci, Tunahan"]
[Black "Yilmazyerli, Mert"]
[Result "0-1"]
[ECO "B09"]
[WhiteElo "1979"]
[BlackElo "2420"]
[Annotator "NA"]
[PlyCount "138"]
[EventDate "2019.07.22"]
[EventType "team-tourn"]
[EventCountry "TUR"]
[SourceTitle "playchess.com"]
[Source "ChessBase"]
[SourceQuality "1"]
[TimeControl "5400+30"]

1. e4 {[%emt 0:00:30]} g6 {[%emt 0:01:30]} 2. d4 {[%emt 0:00:30]} Bg7 {[%emt 0:00:30]} 3. Nc3 {[%emt 0:00:00]} d6 {[%emt 0:00:30]} 4. f4 {[%emt 0:01:00]} Nf6 {[%emt 0:02:30]} 5. Nf3 {[%emt 0:00:30]} O-O {[%emt 0:00:30]} 6. Bd3 {[%emt 0:01:30]} Nc6 {[%emt 0:00:30]} 7. e5 {[%emt 0:10:30]} dxe5 {[%emt 0:00:30]} 8. dxe5 {[%emt 0:02:30]} Nd5 {[%emt 0:00:30]} 9. Nxd5 {[%emt 0:01:30]} Qxd5 {[%emt 0:00:30]} 10. Qe2 {[%emt 0:00:00]} Bg4 {[%emt 0:00:30]} 11. Be4 {[%emt 0:05:00]} Qa5+ {[%emt 0:03:30]} 12. Bd2 {[%emt 0:05:30]} Qb6 {[%emt 0:00:30]} 13. Bc3 {[%emt 0:00:00]} Rad8 {[%emt 0:05:30]} 14. Qf2 {[%emt 0:01:00]} f6 {[%emt 0:05:30]} 15. Qxb6 {[%emt 0:05:30]} axb6 {[%emt 0:05:30]} 16. O-O {[%emt 0:00:00]} Bxf3 {[%emt 0:02:30]} 17. Bxf3 {[%emt 0:05:00]} fxe5 {[%emt 0:00:30]} 18. fxe5 {[%emt 0:00:30]} Bxe5 {[%emt 0:13:30]} 19. Bxe5 {[%emt 0:21:30]} Nxe5 {[%emt 0:00:30]} 20. Bxb7 {[%emt 0:00:30]} Rxf1+ {[%emt 0:00:30]} 21. Rxf1 {[%emt 0:00:30]} Kg7 {[%emt 0:00:30]} 22. b3 {[%emt 0:00:30]} Rd2 {[%emt 0:00:30]} 23. Rf2 {[%emt 0:00:30]} Rd1+ {[%emt 0:00:30]} 24. Rf1 {[%emt 0:00:30]} Rd4 {[%emt 0:00:30]} 25. a4 {[%emt 0:00:30]} Nd7 {[%emt 0:00:30]} 26. Bf3 {[%emt 0:00:30]} Ne5 {[%emt 0:00:30]} 27. Bb7 {[%emt 0:00:30]} c5 {[%emt 0:00:30]} 28. c3 {[%emt 0:00:30]} Rd3 {[%emt 0:00:30]} 29. Rc1 {[%emt 0:00:30]} Rd2 {[%emt 0:00:30]} 30. b4 {[%emt 0:00:30]} cxb4 {[%emt 0:00:30]} 31. cxb4 {[%emt 0:00:30]} Ra2 {[%emt 0:00:30]} 32. Bc6 {[%emt 0:00:30]} Rb2 {[%emt 0:00:30]} 33. Bb5 {[%emt 0:00:30]} Rxb4 {[%emt 0:00:30]} 34. Rc7 {[%emt 0:00:30]} Kf6 {[%emt 0:00:30]} 35. Rb7 {[%emt 0:00:30]} Nf7 {[%emt 0:00:30]} 36. Rxb6+ {[%emt 0:00:30]} Nd6 {[%emt 0:00:30]} 37. Kf2 {[%emt 0:00:30]} Ke5 {[%emt 0:52:03]} 38. Rc6 {[%emt 0:30:39]} Nxb5 {[%emt 0:01:11]} 39. axb5 {[%emt 0:00:30]} Rxb5 {[%emt 0:00:30]} 40. Rc8 {[%emt 0:00:30]} Kf6 {[%emt 0:00:30]} 41. Rh8 {[%emt 0:00:00]} h5 {[%emt 0:00:46]} 42. Kf3 {[%emt 0:00:13]} Rb3+ {[%emt 0:00:30]} 43. Ke4 {[%emt 0:01:02]} Rb2 {[%emt 0:01:03]} 44. Kf3 {[%emt 0:00:30]} e6 {[%emt 0:00:02]} 45. Rf8+ {[%emt 0:00:00]} Kg7 {[%emt 0:00:48]} 46. Ra8 {[%emt 0:00:20]} Rb4 {[%emt 0:00:15]} 47. Rc8 {[%emt 0:00:55]} Kf6 {[%emt 0:00:31]} 48. Rf8+ {[%emt 0:00:13]} Ke5 {[%emt 0:00:29]} 49. Rg8 {[%emt 0:00:30]} Rf4+ {[%emt 0:00:00]} 50. Ke3 {[%emt 0:00:20]} Rf6 {[%emt 0:00:00]} 51. Ra8 {[%emt 0:00:34]} Kf5 {[%emt 0:00:00]} 52. Ra5+ {[%emt 0:01:08]} e5 {[%emt 0:00:00]} 53. Ra7 {[%emt 0:01:36]} Rb6 {[%emt 0:00:34]} 54. Rf7+ {[%emt 0:00:06]} Ke6 {[%emt 0:00:58]} 55. Rg7 {[%emt 0:00:14]} Kf6 {[%emt 0:00:07]} 56. Ra7 {[%emt 0:01:01]} Rb2 {[%emt 0:00:08]} 57. Kf3 {[%emt 0:00:37]} e4+ {[%emt 0:00:09]} 58. Kg3 {[%emt 0:03:11]} h4+ {[%emt 0:00:11]} 59. Kxh4 {[%emt 0:00:27]} Rxg2 {[%emt 0:00:30]} 60. Kh3 {[%emt 0:00:30]} Rg1 {[%emt 0:00:30]} 61. Ra5 {[%emt 0:00:03]} e3 {[%emt 0:00:00]} 62. Ra2 {[%emt 0:01:12]} Kf5 {[%emt 0:00:19]} 63. Ra5+ {[%emt 0:00:11]} Kf4 {[%emt 0:00:38]} 64. Ra4+ {[%emt 0:00:04]} Kf3 {[%emt 0:00:32]} 65. Rg4 {[%emt 0:00:32]} Kf2 {[%emt 0:00:11]} 66. Rf4+ {[%emt 0:00:17]} Ke1 {[%emt 0:00:12]} 67. Ra4 {[%emt 0:00:30]} e2 {[%emt 0:00:12]} 68. Ra1+ {[%emt 0:00:39]} Kf2 {[%emt 0:00:05]} 69. Ra2 {[%emt 0:00:00]} Kf1 {[%emt 0:00:34]} 0-1

[Event "Turkish Second League 2019"]
[Site "Konya"]
[Date "2019.07.22"]
[Round "1"]
[White "Akkus, Suat"]
[Black "Duman, Aydin"]
[Result "0-1"]
[ECO "E94"]
[WhiteElo "1970"]
[BlackElo "2059"]
[Annotator "NA"]
[PlyCount "116"]
[EventDate "2019.07.22"]
[EventType "team-tourn"]
[EventCountry "TUR"]
[SourceTitle "playchess.com"]
[Source "ChessBase"]
[SourceQuality "1"]
[TimeControl "5400+30"]

1. d4 {[%emt 0:00:30]} Nf6 {[%emt 0:00:30]} 2. c4 {[%emt 0:00:00]} g6 {[%emt 0:01:30]} 3. Nc3 {[%emt 0:00:00]} Bg7 {[%emt 0:00:00]} 4. e4 {[%emt 0:00:00]} d6 {[%emt 0:00:00]} 5. Nf3 {[%emt 0:00:00]} O-O {[%emt 0:00:00]} 6. Be2 {[%emt 0:00:30]} Na6 {[%emt 0:01:00]} 7. O-O {[%emt 0:00:30]} e5 {[%emt 0:00:30]} 8. d5 {[%emt 0:00:30]} Nc5 {[%emt 0:00:00]} 9. Qc2 {[%emt 0:00:00]} a5 {[%emt 0:00:00]} 10. Bg5 {[%emt 0:00:00]} h6 {[%emt 0:01:30]} 11. Be3 {[%emt 0:00:00]} Nfd7 {[%emt 0:04:30]} 12. Nd2 {[%emt 0:02:00]} f5 {[%emt 0:00:00]} 13. f3 {[%emt 0:00:30]} h5 {[%emt 0:01:00]} 14. a3 {[%emt 0:01:30]} a4 {[%emt 0:01:30]} 15. Rad1 {[%emt 0:03:30]} f4 {[%emt 0:01:30]} 16. Bf2 {[%emt 0:00:30]} Bf6 {[%emt 0:01:30]} 17. Kh1 {[%emt 0:05:30]} Rf7 {[%emt 0:04:30]} 18. Nb5 {[%emt 0:08:30]} Rg7 {[%emt 0:02:30]} 19. b4 {[%emt 0:06:30]} axb3 {[%emt 0:01:30]} 20. Nxb3 {[%emt 0:00:00]} Nxb3 {[%emt 0:01:30]} 21. Qxb3 {[%emt 0:00:00]} b6 {[%emt 0:00:00]} 22. Ra1 {[%emt 0:02:30]} Nc5 {[%emt 0:00:00]} 23. Qc2 {[%emt 0:01:30]} g5 {[%emt 0:00:30]} 24. g3 {[%emt 0:07:30]} fxg3 {[%emt 0:09:30]} 25. Bxg3 {[%emt 0:01:30]} Bh3 {[%emt 0:07:30]} 26. Rg1 {[%emt 0:00:30]} g4 {[%emt 0:01:30]} 27. fxg4 {[%emt 0:00:30]} hxg4 {[%emt 0:01:30]} 28. Bf1 {[%emt 0:04:30]} Qd7 {[%emt 0:09:30]} 29. Nc3 {[%emt 0:12:30]} Bg5 {[%emt 0:01:30]} 30. Bxh3 {[%emt 0:14:30]} gxh3 {[%emt 0:02:30]} 31. Qe2 {[%emt 0:02:30]} Rf8 {[%emt 0:14:30]} 32. Bf2 {[%emt 0:11:36]} Nb3 {[%emt 0:02:30]} 33. Raf1 {[%emt 0:00:30]} Nd2 {[%emt 0:00:30]} 34. Rd1 {[%emt 0:08:59]} Qf7 {[%emt 0:01:30]} 35. Be3 {[%emt 0:02:43]} Bxe3 {[%emt 0:01:30]} 36. Qxe3 {[%emt 0:00:06]} Qf3+ {[%emt 0:01:30]} 37. Qxf3 {[%emt 0:00:30]} Rxf3 {[%emt 0:00:30]} 38. Rxd2 {[%emt 0:03:32]} Rxc3 {[%emt 0:00:30]} 39. Rxg7+ {[%emt 0:00:30]} Kxg7 {[%emt 0:00:30]} 40. Kg1 {[%emt 0:00:00]} Rxa3 {[%emt 0:00:30]} 41. Kf2 {[%emt 0:00:29]} Rc3 {[%emt 0:00:30]} 42. Re2 {[%emt 0:00:30]} Rxc4 {[%emt 0:00:00]} 43. Re3 {[%emt 0:00:30]} Kf6 {[%emt 0:00:00]} 44. Rxh3 {[%emt 0:00:07]} Rxe4 {[%emt 0:00:30]} 45. Rc3 {[%emt 0:00:33]} Rd4 {[%emt 0:00:30]} 46. Rxc7 {[%emt 0:00:30]} Rxd5 {[%emt 0:00:00]} 47. Rc6 {[%emt 0:00:00]} b5 {[%emt 0:00:00]} 48. Rb6 {[%emt 0:00:34]} Kf5 {[%emt 0:00:30]} 49. h3 {[%emt 0:01:41]} Kf4 {[%emt 0:00:30]} 50. Rb8 {[%emt 0:00:00]} Rd2+ {[%emt 0:00:30]} 51. Ke1 {[%emt 0:00:00]} Rb2 {[%emt 0:00:30]} 52. Rd8 {[%emt 0:00:00]} Ke3 {[%emt 0:00:00]} 53. Kd1 {[%emt 0:00:05]} Rd2+ {[%emt 0:00:00]} 54. Ke1 {[%emt 0:00:05]} d5 {[%emt 0:00:30]} 55. h4 {[%emt 0:00:55]} d4 {[%emt 0:00:00]} 56. Rd5 {[%emt 0:00:04]} e4 {[%emt 0:01:00]} 57. Rxb5 {[%emt 0:00:08]} Rh2 {[%emt 0:00:00]} 58. Kf1 {[%emt 0:00:01]} Rxh4 {[%emt 0:00:00]} 0-1